bitfinex/quotes_ETHUSD_20250314
["timestamp","ask_amount","ask_price","bid_price","bid_amount"]
[1741986124314,10.36514,1929.6,1929.2,6.220182]
[1741986124620,5.1827,1929.5,1929.2,6.220182]
[1741986124820,5.1827,1929.5,1929.1,5.95282]
[1741986124987,5.9471,1929.5,1929.1,5.95282]
[1741986125187,9.27985762,1929.3,1928.9,5.18423]
[1741986125484,0.7644,1929.2,1928.9,5.18411]
[1741986126716,5.94793,1929.2,1928.9,5.18411]
[1741986126920,11.13166,1929.2,1928.8,5.18448]
[1741986127121,5.18378,1929.1,1928.8,5.18448]
[1741986127583,10.36781,1929.1,1928.7,0.7691]
[1741986127783,5.18406,1929.0,1928.7,5.18479]
[1741986127984,9.28032762,1929.1,1928.7,5.18479]
[1741986128292,4.09654762,1929.1,1928.6,5.18505]
[1741986128497,4.09654762,1928.9,1928.6,5.18505]
[1741986128903,4.86094762,1929.1,1928.7,5.18477]
[1741986129104,0.7644,1929.1,1928.8,5.18439]
[1741986129318,0.7644,1929.1,1928.9,5.18425]
[1741986129616,0.7644,1929.1,1928.8,5.18439]
[1741986129823,0.7644,1929.1,1928.8,5.18435]
[1741986130133,0.7644,1929.4,1929.1,5.18355]
[1741986130295,3.7644,1929.4,1929.1,5.18366]
[1741986130834,3.0,1929.4,1929.2,5.18335]
[1741986131126,5.94636,1929.8,1929.4,5.18295]
[1741986131302,3.594636,1929.7,1929.4,5.18295]
[1741986133014,8.776816,1929.7,1929.4,5.18295]
[1741986133218,8.776816,1929.7,1929.3,5.1832]
[1741986133532,8.18218,1929.7,1929.3,5.1832]
[1741986133727,8.18218,1929.7,1929.3,5.18303]
[1741986133909,5.18242,1929.6,1929.2,5.18345]
[1741986134097,12.27872762,1929.7,1929.3,5.18318]
[1741986134298,11.10122938,1929.7,1929.3,10.36624]
[1741986135398,9.27872762,1929.7,1929.3,10.36624]
[1741986135599,9.27872762,1929.7,1929.3,5.18306]
[1741986136300,5.94629,1929.8,1929.4,5.18283]
[1741986136501,5.94629,1929.8,1929.4,5.18282]
[1741986136798,0.7644,1929.8,1929.6,5.18226]
[1741986137020,0.7765,1930.2,1929.6,1.297126]
[1741986137329,5.7575,1930.2,1929.9,5.18154]
[1741986137535,0.7765,1930.2,1929.9,5.18145]
[1741986137840,0.7765,1930.4,1930.1,5.18094]
[1741986137998,5.33492676,1930.4,1930.1,5.18094]
[1741986138208,2.33492676,1930.4,1930.1,5.18094]
[1741986138435,7.51522676,1930.4,1930.0,5.18129]
[1741986138608,3.0,1930.3,1930.0,5.18129]
[1741986139734,10.16074,1930.6,1930.1,5.18092]
[1741986139933,0.7765,1930.6,1930.3,5.18038]
[1741986140136,3.7765,1930.6,1930.3,5.18038]
[1741986140346,5.95623,1930.6,1930.2,5.18074]
[1741986141840,3.7765,1930.6,1930.0,5.18126]
[1741986142009,3.7765,1930.6,1930.2,5.18055]
[1741986142344,3.7765,1930.6,1930.2,10.36118]
[1741986142552,3.7765,1930.6,1930.3,5.18052]
[1741986145109,3.7765,1930.6,1930.2,5.1807]
[1741986145314,8.95639,1930.6,1930.2,5.1807]
[1741986145514,10.8381503,1930.6,1930.2,5.1807]
[1741986146213,10.8381503,1930.6,1930.2,5.18065]
[1741986146850,4.09654762,1930.5,1930.0,5.18133]
[1741986147012,0.8121,1930.3,1930.0,5.18133]
[1741986147213,0.8121,1930.3,1930.0,10.36251]
[1741986148664,0.8121,1930.3,1929.9,0.7789]
[1741986148665,5.99267,1930.3,1929.9,5.18158]
[1741986149637,0.8121,1930.3,1929.9,5.18142]
[1741986149831,0.8121,1930.3,1930.0,5.18122]
[1741986150037,0.8121,1930.3,1930.1,5.18103]
[1741986150226,0.55,1930.4,1930.1,5.18103]
[1741986151919,0.8121,1930.5,1930.1,5.18092]
[1741986152518,5.99221,1930.5,1930.1,5.18092]
[1741986152749,0.8121,1930.5,1930.2,5.18071]
[1741986153242,0.8121,1930.5,1929.9,1.29962331]
[1741986153243,10.08878762,1930.5,1930.0,5.18131]
[1741986153441,5.18039,1930.4,1930.0,5.18116]
[1741986153652,10.08869762,1930.5,1930.1,5.18097]
[1741986153821,5.99215,1930.5,1930.1,5.18097]
[1741986154162,3.0,1930.6,1930.4,5.18027]
[1741986154320,3.0,1930.6,1930.3,5.18046]
[1741986155639,3.0,1930.6,1930.3,10.36082]
[1741986155953,3.0,1930.6,1930.4,5.18013]
[1741986156124,0.0351954,1930.7,1930.5,5.17984]
[1741986157044,0.0351954,1930.7,1930.4,5.18019]
[1741986157449,5.2146954,1930.7,1930.4,5.18019]
[1741986157655,0.0351954,1930.7,1930.4,10.878299]
[1741986158358,0.0351954,1930.7,1930.4,0.518019]
[1741986158542,5.2146754,1930.7,1930.3,10.36088]
[1741986158747,0.0351954,1930.7,1930.4,5.18005]
[1741986158952,0.0351954,1930.7,1930.4,10.36015]
[1741986159427,0.0351954,1930.7,1930.5,5.17996]
[1741986159829,0.0351954,1930.7,1930.5,10.35984]
[1741986160047,0.0351954,1930.7,1930.5,11.395824]
[1741986160242,0.0351954,1930.7,1930.5,6.215864]
[1741986160860,0.0351954,1930.7,1930.5,11.395744]
[1741986161961,0.0351954,1930.7,1930.5,6.215864]
[1741986162162,0.0351954,1930.7,1930.5,10.35971]
[1741986162865,0.0351954,1930.7,1930.5,5.17983]
[1741986163060,0.0351954,1930.7,1930.4,5.18026]
[1741986163229,0.0351954,1930.7,1930.4,10.36036]
[1741986163857,0.0351954,1930.7,1930.5,5.17999]
[1741986165163,0.0351954,1930.7,1930.4,10.36038]
[1741986165352,0.0351954,1930.7,1930.4,11.40159801]
[1741986166669,0.0351954,1930.7,1930.5,5.18]
[1741986170167,0.0351954,1930.7,1930.4,6.22131801]
[1741986170342,0.0351954,1930.7,1930.4,10.36024]
[1741986171040,0.0351954,1930.7,1930.4,10.36027]
[1741986171970,0.0351954,1930.7,1930.5,5.18]
[1741986172171,0.0351954,1930.7,1930.5,5.17985]
[1741986179363,11.2044254,1930.8,1930.5,5.17985]
[1741986180777,5.1795,1930.7,1930.4,5.18024]
[1741986180985,5.1795,1930.7,1930.2,5.95702]
[1741986180986,5.97475,1930.6,1930.2,5.95702]
[1741986181289,5.18041,1930.4,1930.0,5.98791]
[1741986181448,0.7712,1930.1,1929.8,5.18172]
[1741986181845,5.18137,1930.0,1929.6,5.99034]
[1741986182083,5.18137,1930.0,1929.6,14.003655]
[1741986182288,5.18137,1930.0,1929.6,8.821315]
[1741986182449,5.18137,1930.0,1929.6,5.18223]
[1741986182450,10.36294,1930.0,1929.6,5.18223]
[1741986182649,5.1819,1929.8,1929.5,5.18263]
[1741986182959,0.7712,1929.9,1929.6,5.18226]
[1741986183281,5.95283,1929.9,1929.5,5.18261]
[1741986184790,3.7712,1930.1,1929.8,5.18187]
[1741986184947,3.7212,1930.1,1929.8,5.18187]
[1741986185152,3.7212,1930.1,1929.8,5.18171]
[1741986185375,3.7212,1930.1,1929.9,5.18159]
[1741986186455,3.7212,1930.1,1929.8,5.18171]
[1741986186666,8.90228,1930.1,1929.7,5.18214]
[1741986187089,8.90228,1930.1,1929.3,5.18298]
[1741986187090,5.18196,1929.8,1929.4,5.18282]
[1741986187883,10.36403,1929.8,1929.4,5.18282]
[1741986188091,0.7712,1929.7,1929.4,5.18282]
[1741986188742,0.7712,1929.7,1929.5,5.18268]
[1741986192111,0.7712,1929.7,1929.6,5.18242]
[1741986192303,3.0,1929.8,1929.5,10.36519]
[1741986192508,3.0,1929.8,1929.5,11.401709]
[1741986192875,3.0,1929.8,1929.5,6.219059]
[1741986194695,3.0,1929.8,1929.5,6.218999]
[1741986194874,6.0251954,1930.0,1929.6,0.808]
[1741986195059,3.0,1929.9,1929.7,5.18203]
[1741986195889,3.0,1929.9,1929.6,11.07259633]
[1741986196192,3.0,1929.9,1929.7,5.18195]
[1741986197388,3.0,1929.9,1929.6,5.89027633]
[1741986197559,5.95749,1929.8,1929.5,5.18267]
[1741986197761,5.95749,1929.8,1929.4,10.36569]
[1741986198054,5.95749,1929.8,1929.5,5.18268]
[1741986198491,0.7756,1929.8,1929.5,5.18268]
[1741986199198,5.9575,1929.8,1929.5,5.18268]
[1741986199502,5.18229,1929.7,1929.3,5.18319]
[1741986199788,0.7756,1929.6,1929.3,5.18308]
[1741986199999,6.8007954,1929.6,1929.3,5.18308]
[1741986200168,6.8007954,1929.6,1929.2,5.18349]
[1741986200169,11.9832554,1929.6,1929.2,5.18349]
[1741986200370,17.1659054,1929.6,1929.2,5.18349]
[1741986200570,17.1659054,1929.6,1929.0,5.18401]
[1741986200571,0.7756,1929.3,1929.0,5.18401]
[1741986202010,0.7756,1929.3,1929.0,5.18386]
[1741986202198,0.7756,1929.3,1929.1,5.18364]
[1741986202365,0.7994,1929.5,1929.2,5.18349]
[1741986202703,5.98223,1929.5,1929.1,5.18362]
[1741986203003,11.16512,1929.5,1929.1,5.18362]
[1741986203806,5.183,1929.4,1929.1,5.18362]
[1741986205804,0.7994,1929.5,1929.2,5.18342]
[1741986205968,0.7994,1929.5,1929.2,5.1833]
[1741986206173,12.0070254,1929.6,1929.3,5.70145]
[1741986206382,12.0070254,1929.6,1929.3,5.18312]
[1741986207611,6.8245954,1929.6,1929.3,10.36617]
[1741986207786,6.8245954,1929.6,1929.3,5.18305]
[1741986207987,12.0070654,1929.6,1929.3,5.18305]
[1741986209489,12.0070654,1929.6,1929.2,5.97601]
[1741986209689,12.0070654,1929.6,1929.2,11.15935]
[1741986210809,5.1828,1929.5,1929.2,5.18334]
[1741986211502,12.0070654,1929.6,1929.2,10.36662]
[1741986211907,6.8245954,1929.6,1929.3,5.18318]
[1741986212106,6.8245954,1929.6,1929.3,10.36623]
[1741986212410,6.8245954,1929.6,1929.3,5.18305]
[1741986213377,6.8245954,1929.6,1929.3,5.1831]
[1741986214183,6.8245954,1929.6,1929.4,5.18289]
[1741986215383,6.0251954,1929.6,1929.4,5.18289]
[1741986218816,6.0251954,1929.6,1929.4,10.36568]
[1741986219321,6.0251954,1929.6,1929.4,5.18279]
[1741986220190,6.0251954,1929.6,1929.4,10.3656]
[1741986220515,6.0251954,1929.6,1929.4,5.18279]
[1741986223730,6.0251954,1929.6,1929.4,10.36563]
[1741986224228,6.0251954,1929.6,1929.4,5.18279]
[1741986226627,6.0251954,1929.6,1929.4,10.36558]
[1741986228633,6.0251954,1929.6,1929.4,5.18292]
[1741986228835,6.0251954,1929.6,1929.3,5.1831]
[1741986230042,6.0251954,1929.6,1928.8,5.18434]
[1741986230043,5.98673,1929.2,1928.8,5.18434]
[1741986230213,10.08327762,1929.2,1928.6,5.99307]
[1741986230544,5.98724,1929.0,1928.6,10.36995]
[1741986231122,5.98724,1929.0,1928.6,10.36997]
[1741986231432,5.98724,1929.0,1928.6,5.18496]
[1741986231811,5.98724,1929.0,1928.6,5.18491]
[1741986232009,0.8032,1929.0,1928.7,5.18473]
[1741986233036,0.8032,1929.0,1928.8,5.18445]
[1741986233438,6.8283954,1929.0,1928.8,5.18445]
[1741986233647,6.8283954,1929.0,1928.7,5.18476]
[1741986236143,12.0125454,1929.0,1928.6,5.703461]
[1741986236442,16.10909302,1929.0,1928.5,5.18529]
[1741986236751,5.18441,1928.9,1928.5,5.18529]
[1741986236956,10.3689,1928.9,1928.5,5.18529]
[1741986237159,5.18462,1928.8,1928.5,5.18529]
[1741986237513,3.7922,1928.7,1928.4,5.18561]
[1741986237715,15.0023654,1928.7,1928.3,5.1859]
[1741986237920,5.18537,1928.5,1928.2,5.18618]
[1741986238219,0.7922,1928.4,1928.1,5.18643]
[1741986238816,5.97784,1928.4,1928.1,5.18643]
[1741986239018,5.97784,1928.4,1928.0,5.94708]
[1741986239316,21.28544302,1928.4,1928.0,5.18668]
[1741986239513,5.18593,1928.3,1927.9,5.18696]
[1741986239713,10.37207,1928.3,1927.9,5.18696]
[1741986239914,0.7922,1928.1,1927.8,5.18723]
[1741986240143,0.7922,1928.1,1927.9,5.18698]
[1741986240541,6.0251954,1928.3,1927.9,5.18679]
[1741986240730,6.8173954,1928.3,1928.0,10.37344]
[1741986240942,6.8173954,1928.3,1928.0,5.18672]
[1741986241142,12.0033254,1928.3,1927.9,5.18697]
[1741986241459,12.0033254,1928.3,1927.9,10.37376]
[1741986241765,6.8173954,1928.3,1928.0,5.18669]
[1741986242321,12.0034154,1928.3,1927.9,5.18693]
[1741986242521,6.8173954,1928.3,1928.0,5.18668]
[1741986242827,5.18625,1928.2,1927.8,5.1872]
[1741986243354,5.18625,1928.2,1927.8,10.37426]
[1741986243665,12.0033154,1928.3,1927.9,5.18688]
[1741986245629,5.18627,1928.2,1927.8,5.18725]
[1741986245832,5.18627,1928.2,1927.8,10.37434]
[1741986246035,5.18627,1928.2,1927.8,5.18709]
[1741986246559,12.0033154,1928.3,1927.9,5.18697]
[1741986246795,12.0033154,1928.3,1927.9,5.18687]
[1741986246927,12.0033154,1928.3,1928.0,5.1867]
[1741986247466,12.0033154,1928.3,1927.9,5.18692]
[1741986248071,6.8173954,1928.3,1927.9,5.18687]
[1741986248375,6.8173954,1928.3,1927.9,0.8317]
[1741986248546,6.8173954,1928.3,1928.1,5.18631]
[1741986248732,6.8173954,1928.3,1928.1,5.18629]
[1741986248930,6.0251954,1928.3,1928.1,5.18628]
[1741986249135,6.0251954,1928.3,1928.2,5.18618]
[1741986249637,6.0251954,1928.3,1928.1,5.18628]
[1741986252033,6.0251954,1928.3,1928.1,10.37262]
[1741986252377,6.0251954,1928.3,1928.2,5.18618]
[1741986253239,6.0251954,1928.3,1928.2,1.037246]
[1741986253442,6.0251954,1928.3,1928.2,6.223426]
[1741986253653,6.0251954,1928.3,1928.2,1.037246]
[1741986254479,6.0251954,1928.3,1928.2,6.223426]
[1741986255279,6.0251954,1928.3,1928.2,5.18618]
[1741986258476,6.0251954,1928.3,1928.1,5.18628]
[1741986258966,6.0251954,1928.3,1928.1,10.37257]
[1741986259784,6.0251954,1928.3,1928.2,5.18618]
[1741986261279,6.0251954,1928.3,1928.0,5.1865]
[1741986261476,6.0251954,1928.3,1928.1,5.18635]
[1741986261676,6.0251954,1928.3,1928.2,5.18618]
[1741986265974,6.0251954,1928.3,1928.1,5.18635]
[1741986266973,6.0251954,1928.3,1928.1,5.1863]
[1741986267177,6.0251954,1928.3,1928.2,5.18618]
[1741986267666,6.0251954,1928.3,1928.2,6.990628]
[1741986268688,6.0251954,1928.6,1928.3,5.18574]
[1741986268873,6.0251954,1928.6,1928.3,5.1857]
[1741986269201,6.0251954,1928.6,1928.4,5.18553]
[1741986274488,6.0251954,1928.6,1928.3,10.37168]
[1741986275799,11.2103054,1928.6,1928.3,5.1858]
[1741986275961,0.7596,1928.4,1928.1,5.18639]
[1741986278273,5.18735,1927.8,1927.4,10.37647]
[1741986278755,5.18735,1927.8,1927.5,5.18804]
[1741986279966,11.12977,1927.9,1927.5,5.18804]
[1741986280180,5.18728,1927.8,1927.5,5.18804]
[1741986280377,5.18766,1927.7,1927.3,5.18847]
[1741986280900,5.18766,1927.7,1927.3,10.37688]
[1741986281286,6.0251954,1927.8,1927.5,5.18804]
[1741986282167,6.0251954,1927.8,1927.5,10.376]
[1741986282367,6.0251954,1927.8,1927.5,5.18796]
[1741986283695,6.0251954,1927.8,1927.5,10.3759]
[1741986283995,6.0251954,1927.8,1927.6,5.18776]
[1741986284195,6.0251954,1927.8,1927.5,5.18794]
[1741986284896,11.2124954,1927.8,1927.5,5.18794]
[1741986286192,6.0251954,1927.8,1927.5,5.18794]
[1741986286693,11.2125254,1927.8,1927.5,5.18794]
[1741986287870,5.18754,1927.7,1927.4,5.1883]
[1741986288067,11.2125254,1927.8,1927.4,10.37638]
[1741986288284,13.1189927,1927.8,1927.4,10.37638]
[1741986288524,13.1189927,1927.8,1927.5,5.18806]
[1741986290204,6.0251954,1927.8,1927.5,5.18797]
[1741986290700,6.0251954,1927.8,1927.5,10.37592]
[1741986290867,6.0251954,1927.8,1927.5,5.18795]
[1741986292603,6.0251954,1927.8,1927.5,5.18794]
[1741986292901,6.0251954,1927.8,1927.7,5.18752]
[1741986293110,3.0,1927.9,1927.7,5.18752]
[1741986293320,3.0,1927.9,1927.7,10.37487]
[1741986293523,3.0,1927.9,1927.7,5.18735]
[1741986294629,3.0,1927.9,1927.6,11.19005]
[1741986295613,3.0,1927.9,1927.7,5.18743]
[1741986297303,3.0,1927.9,1927.6,6.00228]
[1741986297507,3.0,1927.9,1927.6,6.0022]
[1741986297707,3.0,1927.9,1927.6,11.18984]
[1741986298518,3.0,1927.9,1927.6,5.1876]
[1741986298683,8.18705,1927.9,1927.6,5.1876]
[1741986298879,0.8211,1927.8,1927.4,10.3765]
[1741986299095,6.0085,1927.8,1927.4,10.3765]
[1741986299303,6.0085,1927.8,1927.5,5.18805]
[1741986300995,6.0085,1927.8,1927.4,5.18819]
[1741986301917,6.0085,1927.8,1927.4,10.37637]
[1741986302136,6.0085,1927.8,1927.4,5.18818]
[1741986302516,5.18765,1927.7,1927.3,10.37708]
[1741986302729,10.37536,1927.7,1927.3,5.18851]
[1741986303029,14.47190762,1927.7,1927.3,5.18851]
[1741986303389,5.18808,1927.5,1927.2,5.18884]
[1741986303816,5.18808,1927.5,1927.0,0.7782]
[1741986303817,6.01549,1927.4,1927.0,5.18934]
[1741986304021,0.827,1927.4,1927.0,5.18924]
[1741986304202,0.827,1927.4,1927.1,10.37804]
[1741986304389,0.827,1927.4,1927.2,5.18885]
[1741986304591,4.09654762,1927.5,1927.3,5.1886]
[1741986304592,3.0,1927.5,1927.3,5.1886]
[1741986304789,4.47630154,1927.5,1927.3,5.1886]
[1741986305017,3.0,1927.5,1927.4,5.18833]
[1741986305922,6.0251954,1927.6,1927.4,5.18833]
[1741986306423,6.0251954,1927.6,1927.4,5.18817]
[1741986306836,7.92354762,1927.7,1927.4,5.18817]
[1741986307196,7.92354762,1927.7,1927.4,10.37639]
[1741986307397,7.92354762,1927.7,1927.5,5.18796]
[1741986308598,3.0,1927.7,1927.5,5.18796]
[1741986309121,3.0,1927.7,1927.5,5.18795]
[1741986309327,6.8521954,1927.8,1927.5,5.18795]
[1741986309328,6.8521954,1927.8,1927.6,5.18779]
[1741986309654,6.8521954,1927.8,1927.5,5.18795]
[1741986311426,12.0394754,1927.8,1927.5,5.18795]
[1741986314526,12.0394754,1927.8,1927.4,5.1883]
[1741986314829,12.0394754,1927.8,1927.4,10.37647]
[1741986315133,9.47848856,1927.8,1927.3,5.18852]
[1741986315320,4.09654762,1927.7,1927.4,5.18824]
[1741986315714,4.09654762,1927.7,1927.4,5.18816]
[1741986317328,5.97546,1927.6,1927.2,5.18885]
[1741986317630,5.97546,1927.6,1927.2,10.3777]
[1741986317942,0.7875,1927.6,1927.3,10.37706]
[1741986318506,0.7875,1927.6,1927.3,5.18846]
[1741986318719,11.9999854,1927.8,1927.4,5.18816]
[1741986319717,11.9999854,1927.8,1927.4,10.37638]
[1741986319915,11.9999554,1927.8,1927.5,5.18804]
[1741986320934,17.1873854,1927.8,1927.4,5.18826]
[1741986321239,11.9999554,1927.8,1927.4,5.18826]
[1741986321414,17.1873854,1927.8,1927.4,5.18826]
[1741986321615,14.62233856,1927.8,1927.4,5.18826]
[1741986321815,14.62233856,1927.8,1927.5,5.18806]
[1741986322224,6.0251954,1927.8,1927.5,5.18806]
[1741986322432,3.0,1927.9,1927.6,11.1256]
[1741986323146,3.0,1927.9,1927.6,5.93791]
[1741986323451,8.18725,1927.9,1927.6,5.93803]
[1741986324051,3.0,1927.9,1927.6,5.93803]
[1741986324215,5.18716,1927.9,1927.6,0.7503]
[1741986324613,12.5927254,1928.0,1927.6,5.93809]
[1741986325106,5.18709,1927.9,1927.6,5.93809]
[1741986325308,5.18709,1927.9,1927.6,5.18779]
[1741986327438,10.37428,1927.9,1927.5,5.18805]
[1741986327623,12.15226154,1927.9,1927.5,5.18789]
[1741986327941,12.15228154,1927.9,1927.5,5.18789]
[1741986328242,6.96507154,1927.9,1927.5,10.37584]
[1741986328536,6.96507154,1927.9,1927.5,5.18789]
[1741986328745,12.15228154,1927.9,1927.5,5.18789]
[1741986329035,5.18731,1927.8,1927.5,5.18789]
[1741986329231,5.18731,1927.8,1927.4,0.7503]
[1741986329438,5.18767,1927.7,1927.4,0.7503]
[1741986329734,7.12431392,1927.8,1927.4,5.93861]
[1741986329945,12.31175392,1927.8,1927.4,5.93861]
[1741986330335,6.01813,1927.8,1927.4,11.12678]
[1741986330553,0.55,1927.8,1927.5,5.18794]
[1741986330861,6.0251954,1928.0,1927.7,5.18742]
[1741986331006,6.0251954,1928.0,1927.7,5.93772]
[1741986331211,6.0251954,1928.0,1927.7,11.1251]
[1741986331518,6.0251954,1928.0,1927.8,5.18724]
[1741986332121,6.0251954,1928.0,1927.7,5.93775]
[1741986332323,0.13742561,1927.9,1927.7,5.93775]
[1741986332519,0.13742561,1927.9,1927.7,11.12513]
[1741986332720,0.13742561,1927.9,1927.8,5.18726]
[1741986333065,0.13742561,1927.9,1927.8,5.96536]
[1741986333846,3.0,1928.2,1928.0,5.18667]
[1741986334356,3.0,1928.2,1927.9,5.1869]
[1741986335054,8.18603,1928.3,1927.9,5.18681]
[1741986335256,8.18602,1928.3,1927.9,10.37365]
[1741986336353,8.18602,1928.3,1927.8,5.96527]
[1741986336554,5.1863,1928.2,1927.8,5.96527]
[1741986336853,5.1863,1928.2,1927.8,11.15238]
[1741986337623,0.13263374,1928.1,1927.9,5.18691]
[1741986339053,0.13263374,1928.1,1927.9,6.302052]
[1741986339258,8.18602,1928.3,1927.9,6.302052]
[1741986339459,0.13242824,1928.0,1927.9,6.302052]
[1741986339694,8.18602,1928.3,1927.9,6.302052]
[1741986339861,0.13239,1928.0,1927.9,5.18684]
[1741986340060,8.18602,1928.3,1927.9,5.18684]
[1741986340562,0.13189721,1928.2,1927.9,10.37368]
[1741986340860,0.13189721,1928.2,1927.9,5.18684]
[1741986341157,10.50462721,1928.2,1927.8,5.96534]
[1741986341459,5.18645,1928.1,1927.8,5.96534]
[1741986341962,0.13156262,1928.0,1927.8,5.96534]
[1741986342148,5.18632,1928.2,1927.8,7.1918753]
[1741986342324,0.13139529,1927.9,1927.8,5.96534]
[1741986342527,5.18632,1928.2,1927.8,11.15243]
[1741986342860,0.13139529,1927.9,1927.8,11.15243]
[1741986343034,5.18632,1928.2,1927.8,11.15243]
[1741986343573,0.13172992,1928.1,1927.8,11.15243]
[1741986343746,0.13172992,1928.1,1927.8,12.267673]
[1741986344437,0.13172992,1928.1,1927.8,7.080433]
[1741986344640,5.31819992,1928.1,1927.8,0.7781]
[1741986344939,5.18685,1928.0,1927.8,0.7781]
[1741986345140,5.31339241,1928.0,1927.5,10.37595]
[1741986345348,5.1871,1927.9,1927.5,11.413545]
[1741986345538,5.31357998,1927.9,1927.5,11.413545]
[1741986345869,5.31357998,1927.9,1927.5,11.413435]
[1741986346042,5.31357998,1927.9,1927.5,5.18791]
[1741986346247,5.9951,1927.8,1927.5,5.18804]
[1741986346636,0.12622195,1927.7,1927.5,5.18804]
[1741986346865,0.12622195,1927.7,1927.4,5.97447]
[1741986347036,5.31377195,1927.7,1927.4,5.97447]
[1741986348961,0.12622195,1927.7,1927.4,5.97447]
[1741986350682,0.12622195,1927.7,1927.4,7.090774]
[1741986352779,0.12622195,1927.7,1927.4,12.278994]
[1741986353079,0.12622195,1927.7,1927.4,7.090724]
[1741986354482,0.12622195,1927.7,1927.4,12.278954]
[1741986354781,0.12622195,1927.7,1927.5,5.18803]
[1741986356386,0.12622195,1927.7,1927.5,10.37593]
[1741986356589,0.12622195,1927.7,1927.6,5.18779]
[1741986356882,0.12622195,1927.7,1927.6,6.00846566]
[1741986358803,0.12622195,1927.7,1927.6,5.95659]
[1741986360163,6.0251954,1927.8,1927.7,5.95632]
[1741986360676,6.14951355,1927.8,1927.7,6.00818952]
[1741986361001,6.14951355,1927.8,1927.7,7.07591795]
[1741986362102,0.12431815,1927.8,1927.7,7.07591795]
[1741986364085,0.12431815,1927.8,1927.7,7.12778126]
[1741986364799,0.12431815,1927.8,1927.7,7.07591795]
[1741986365774,0.12431815,1927.8,1927.7,7.12777968]
[1741986371974,0.12431815,1927.8,1927.7,7.07591795]
[1741986374600,0.12431815,1927.8,1927.7,6.30711795]
[1741986377245,0.12431815,1927.8,1927.7,5.18752]
[1741986377430,0.87631815,1927.8,1927.5,5.18796]
[1741986377711,11.25118815,1927.8,1927.4,5.1882]
[1741986377920,8.52465536,1927.8,1927.4,5.1882]
[1741986378320,11.25125815,1927.8,1927.4,5.1882]
[1741986378522,12.37638397,1927.8,1927.4,5.1882]
[1741986378685,7.18887397,1927.8,1927.4,5.2400755]
[1741986378887,0.87631815,1927.8,1927.5,5.18796]
[1741986379087,0.87631815,1927.8,1927.5,10.37587]
[1741986379314,0.87631815,1927.8,1927.6,5.18761]
[1741986382331,0.87631815,1927.8,1927.7,5.18752]
[1741986382519,0.12431815,1927.8,1927.7,5.18752]
[1741986384920,0.12431815,1927.8,1927.6,5.18761]
[1741986385124,0.7799,1927.7,1927.6,5.18761]
[1741986385732,0.7799,1927.7,1927.5,5.18806]
[1741986385901,0.7799,1927.7,1927.5,10.37598]
[1741986387212,0.7799,1927.7,1927.6,5.18779]
[1741986390450,0.7799,1927.7,1927.5,5.18792]
[1741986394058,0.7799,1927.7,1927.5,5.18803]
[1741986394461,0.7799,1927.7,1927.4,5.18821]
[1741986394660,5.18788,1927.6,1927.2,5.18885]
[1741986394860,5.96804,1927.5,1927.1,5.18899]
[1741986395156,0.7799,1927.5,1927.2,5.18887]
[1741986395532,5.96819,1927.5,1927.1,5.18899]
[1741986395729,5.18849,1927.4,1927.0,5.18938]
[1741986395955,0.7799,1927.3,1927.0,5.18938]
[1741986396770,5.96851,1927.3,1927.0,5.18938]
[1741986399179,0.7799,1927.3,1927.0,5.18938]
[1741986399540,5.96861,1927.3,1926.9,5.18946]
[1741986399740,5.96861,1927.3,1926.9,11.416908]
[1741986399940,5.96861,1927.3,1927.0,5.18938]
[1741986400435,5.96861,1927.3,1926.8,5.18991]
[1741986400436,5.18898,1927.2,1926.8,5.18991]
[1741986400685,5.18898,1927.2,1926.8,10.37973]
[1741986400851,0.7992,1927.1,1926.8,10.37973]
[1741986401184,0.7992,1927.1,1926.8,11.52362463]
[1741986401483,0.7992,1927.1,1926.8,6.33371463]
[1741986401781,0.7992,1927.1,1926.8,11.52356463]
[1741986402135,0.7992,1927.1,1926.9,5.18965]
[1741986402735,12.0136654,1927.1,1926.7,5.19008]
[1741986403041,5.18942,1927.0,1926.7,5.19008]
[1741986403270,17.2029854,1927.1,1926.7,5.19008]
[1741986403684,12.0136654,1927.1,1926.7,6.35879882]
[1741986403885,6.8243954,1927.1,1926.8,5.18982]
[1741986405760,6.8243954,1927.1,1926.8,10.3796]
[1741986405955,6.8243954,1927.1,1926.8,5.18978]
[1741986406698,6.8243954,1927.1,1926.9,5.18943]
[1741986406900,6.0251954,1927.1,1926.9,10.897953]
[1741986407497,0.8196,1927.0,1926.9,5.18943]
[1741986407687,0.8196,1927.0,1926.8,5.18991]
[1741986408206,0.8196,1927.0,1926.7,5.1902]
[1741986408403,0.8196,1927.0,1926.7,10.38027]
[1741986408817,0.8196,1927.0,1926.8,5.18994]
[1741986409691,6.00912,1927.0,1926.6,5.19035]
[1741986410077,6.00943,1926.9,1926.5,5.19063]
[1741986410277,0.8196,1926.9,1926.6,5.19033]
[1741986410606,0.8196,1926.9,1926.6,5.19032]
[1741986411416,6.00934,1926.9,1926.6,5.19032]
[1741986412415,0.8196,1926.9,1926.6,5.19032]
[1741986412615,0.8196,1926.9,1926.3,1.059624]
[1741986412774,0.8196,1926.9,1926.6,5.1903]
[1741986413400,0.8196,1926.7,1926.4,5.19102]
[1741986413596,0.8196,1926.7,1926.2,6.01365]
[1741986413801,0.8196,1926.7,1926.6,5.19049]
[1741986415600,0.8196,1926.7,1926.5,5.19071]
[1741986416017,0.8196,1926.7,1926.5,10.3813]
[1741986416884,0.8196,1926.7,1926.6,5.19049]
[1741986417089,3.8106,1926.9,1926.6,5.19049]
[1741986417610,9.00029,1926.9,1926.5,5.19059]
[1741986418211,6.00029,1926.9,1926.5,5.19059]
[1741986418516,8.46482514,1926.9,1926.5,5.19059]
[1741986419177,8.46482514,1926.9,1926.5,10.38119]